bitfinex-derivatives/quotes_SOLF0:USTF0_20250522
["timestamp","ask_amount","ask_price","bid_price","bid_amount"]
[1747872003017,0.0408497,173.77,173.74,0.03938131]
[1747872004912,5.753,173.75,173.74,0.03938131]
[1747872005110,0.0408497,173.77,173.74,0.03938131]
[1747872008109,144.7,173.76,173.46,17.28]
[1747872008309,2.0049,173.75,173.55,5.9285]
[1747872008504,2.0049,173.75,173.56,144.68]
[1747872009207,0.0411996,173.67,173.64,0.03850244]
[1747872009501,0.0410686,173.67,173.64,144.71934933]
[1747872010214,0.0410686,173.67,173.65,3.9625]
[1747872010513,0.0410686,173.67,173.65,9.7188]
[1747872011210,0.0410686,173.67,173.65,3.9625]
[1747872011810,0.0410686,173.67,173.66,5.756]
[1747872012213,0.0410686,173.67,173.66,7.7795]
[1747872012505,1.9995,173.88,173.7,5.7545]
[1747872012711,144.68,173.79,173.7,5.7545]
[1747872013312,144.68,173.79,173.66,2.0235]
[1747872013611,0.04420201,173.74,173.71,0.0386882]
[1747872014412,0.04420201,173.74,173.73,5.7537]
[1747872015613,0.04420201,173.74,173.71,0.0386882]
[1747872016109,0.04420201,173.74,173.71,5.7928882]
[1747872016517,0.04420201,173.74,173.73,5.7537]
[1747872016812,144.68,173.83,173.71,0.0386882]
[1747872017008,1.9449,173.86,173.68,144.68]
[1747872017213,146.6249,173.86,173.68,144.68]
[1747872017414,146.6249,173.86,173.69,497.48]
[1747872017914,0.04311387,173.79,173.76,0.04154813]
[1747872018215,0.03733114,173.79,173.78,5.752]
[1747872019311,144.68,173.86,173.76,144.70154813]
[1747872019512,144.66,173.9,173.77,1.9893]
[1747872020114,5.7491,173.87,173.8,5.7511]
[1747872020409,0.0436368,173.85,173.82,0.04143526]
[1747872020612,146.6443,173.94,173.82,0.03670992]
[1747872020811,146.6443,173.94,173.81,144.66]
[1747872021506,5.7481,173.9,173.81,144.66]
[1747872021815,0.03888556,173.89,173.86,0.04366874]
[1747872023912,0.03888556,173.89,173.69,497.48]
[1747872023913,144.63888556,173.89,173.76,144.6]
[1747872024115,1.8175,173.88,173.72,144.6]
[1747872024618,144.6,173.89,173.73,2.0728]
[1747872024821,0.04047404,173.83,173.79,0.03802483]
[1747872025214,0.04047404,173.83,173.79,5.78942483]
[1747872025514,0.04047404,173.83,173.79,0.03802483]
[1747872025823,0.04047404,173.83,173.79,5.78962483]
[1747872026316,0.04047404,173.83,173.79,0.03802483]
[1747872026520,0.04047404,173.83,173.79,2.12112483]
[1747872027222,0.04047404,173.83,173.79,0.03802483]
[1747872027525,5.7514,173.8,173.79,0.03802483]
[1747872028019,0.04047404,173.83,173.79,0.03802483]
[1747872029020,5.751,173.82,173.79,0.03802483]
[1747872029221,0.04047404,173.83,173.79,0.03802483]
[1747872029525,5.7511,173.81,173.79,0.03802483]
[1747872030026,5.79087404,173.83,173.79,0.03802483]
[1747872030427,0.04047404,173.83,173.79,0.03802483]
[1747872030927,5.751,173.82,173.79,0.03802483]
[1747872031230,0.04047404,173.83,173.79,0.03802483]
[1747872032328,5.7513,173.8,173.79,0.03802483]
[1747872032525,144.6,173.8,173.7,4.0931]
[1747872032828,144.6,173.8,173.67,144.6]
[1747872033424,5.7533,173.75,173.72,0.03911259]
[1747872033727,0.0371627,173.75,173.72,0.03911259]
[1747872033931,144.6371627,173.75,173.72,0.03911259]
[1747872034631,5.7537,173.73,173.72,0.03911259]
[1747872035027,0.0371627,173.75,173.72,0.03911259]
[1747872036634,5.7534,173.74,173.72,0.03911259]
[1747872037126,0.0371627,173.75,173.72,0.03911259]
[1747872037630,0.0371627,173.75,173.62,1.9952]
[1747872037631,750.52,173.74,173.43,497.3]
[1747872037833,3.8619,173.73,173.5,3.8833]
[1747872038233,143.88,173.72,173.5,147.7433]
[1747872038429,3.8619,173.73,173.5,257.1033]
[1747872038633,0.03629128,173.63,173.6,0.04093214]
[1747872038833,0.04028,173.63,173.6,0.0407517]
[1747872039039,143.88,173.71,173.6,0.0407517]
[1747872039238,5.755,173.69,173.61,5.7576]
[1747872039439,143.88,173.71,173.59,4.0792]
[1747872039646,143.88,173.71,173.63,5.757]
[1747872039842,143.88,173.71,173.59,4.0792]
[1747872040042,0.04020725,173.69,173.65,0.03783918]
[1747872040242,5.756,173.66,173.65,0.03783918]
[1747872040443,5.756,173.66,173.46,497.34]
[1747872040444,151.28,173.66,173.51,151.28]
[1747872040750,151.28,173.66,173.52,151.28]
[1747872040943,151.28,173.66,173.49,151.28]
[1747872041143,1.8255,173.65,173.49,151.28]
[1747872041348,0.03636545,173.59,173.55,0.03951728]
[1747872045650,0.03636545,173.59,173.55,4.00541728]
[1747872046550,151.32,173.65,173.55,4.00541728]
[1747872047055,157.0764,173.65,173.57,5.759]
[1747872047246,157.0764,173.65,173.55,4.00541728]
[1747872047247,151.32,173.65,173.58,2.1017]
[1747872047452,1.9771,173.69,173.6,5.7577]
[1747872047763,3.8238,173.73,173.58,2.1017]
[1747872047764,0.04341557,173.66,173.63,0.04215193]
[1747872047949,0.03776669,173.66,173.63,0.04215193]
[1747872048448,151.38,173.65,173.55,1.9957]
[1747872049054,5.7578,173.61,173.55,1.9957]
[1747872049354,151.38,173.65,173.55,1.9957]
[1747872049555,0.04283061,173.62,173.58,0.03987132]
[1747872050150,5.7583,173.59,173.58,0.03987132]
[1747872050858,157.158,173.6,173.58,0.03987132]
[1747872051050,151.4,173.6,173.58,0.03987132]
[1747872051453,5.7583,173.59,173.58,0.03987132]
[1747872052148,151.4,173.6,173.49,1.9912]
[1747872053149,0.03691499,173.56,173.53,0.03797147]
[1747872053450,151.42,173.67,173.54,151.42]
[1747872053654,151.42,173.69,173.57,5.7589]
[1747872053855,151.42,173.69,173.56,2.0258]
[1747872054156,151.42,173.69,173.59,5.7583]
[1747872054357,0.0370416,173.66,173.62,0.04154204]
[1747872054557,5.7932416,173.66,173.62,0.04154204]
[1747872054756,0.0370416,173.66,173.62,0.04154204]
[1747872056958,0.0370416,173.66,173.63,1.43995135]
[1747872057561,5.7567,173.64,173.63,1.43995135]
[1747872058058,5.757,173.63,173.62,0.04154204]
[1747872060667,2.0728,173.65,173.51,2.0992]
[1747872060860,151.4,173.64,173.45,4.1389]
[1747872061063,5.7607,173.52,173.45,4.1389]
[1747872061267,151.4,173.54,173.41,151.4]
[1747872061453,151.4,173.53,173.41,151.4]
[1747872061653,5.7626,173.46,173.45,0.04048539]
[1747872061856,151.4,173.46,173.36,151.4]
[1747872062058,157.1629,173.46,173.32,151.4]
[1747872062257,151.4,173.46,173.32,151.4]
[1747872062558,5.7642,173.42,173.32,151.4]
[1747872062756,0.04407872,173.39,173.35,0.03781929]
[1747872062954,0.04407872,173.39,173.35,0.03871137]
[1747872063359,497.86,173.48,173.35,0.03871137]
[1747872063561,649.3,173.48,173.32,151.4]
[1747872063961,649.3,173.48,173.26,503.8241]
[1747872064263,649.3,173.48,173.3,5.7679]
[1747872064465,0.03646204,173.41,173.37,0.03770341]
[1747872064663,151.44,173.4,173.37,0.03760587]
[1747872066067,0.03646204,173.41,173.37,0.03760587]
[1747872066460,0.03646204,173.41,173.37,151.53760587]
[1747872066670,151.5,173.47,173.38,3.9787]
[1747872066966,151.5,173.51,173.38,3.9787]
[1747872067673,0.04216188,173.46,173.43,0.04315539]
[1747872067865,157.2603,173.53,173.45,5.763]
[1747872068469,151.5,173.53,173.42,151.5]
[1747872068666,151.5,173.53,173.43,2.0569]
[1747872068969,0.04129882,173.5,173.46,0.04276617]
[1747872070069,5.7623,173.47,173.46,0.04276617]
[1747872070471,154.96,173.48,173.38,3.9787]
[1747872070670,5.763,173.45,173.38,3.9787]
[1747872070969,154.96,173.48,173.38,3.9787]
[1747872071168,5.7628,173.46,173.38,3.9787]
[1747872071365,0.03892959,173.44,173.4,0.03907038]
[1747872072966,0.03892959,173.44,173.33,154.98]
[1747872073171,157.0312,173.52,173.38,2.0768]
[1747872073473,154.98,173.58,173.38,2.0768]
[1747872073866,0.04386421,173.5,173.46,0.04178939]
[1747872074069,0.0395924,173.5,173.46,0.03771754]
[1747872074270,0.0395924,173.5,173.46,4.18061754]
[1747872074575,2.0537,173.63,173.46,9.94061754]
[1747872074775,2.0537,173.63,173.46,4.1429]
[1747872075075,5.7584,173.59,173.49,5.7616]
[1747872075277,5.7584,173.59,173.46,4.1429]
[1747872075476,0.0436195,173.54,173.51,0.038163]
[1747872075676,0.03758302,173.54,173.51,0.04294769]
[1747872078472,216.81409999,173.64,173.51,0.04294769]
[1747872078786,154.98,173.69,173.52,109.54]
[1747872078978,154.98,173.69,173.53,498.1]
[1747872079277,154.98,173.73,173.53,498.1]
[1747872079579,0.04191388,173.64,173.61,0.03775561]
[1747872079777,0.04228307,173.64,173.62,154.98]
[1747872080278,0.04228307,173.64,173.61,0.04201199]
[1747872081978,0.04228307,173.64,173.52,154.92]
[1747872081979,154.92,173.63,173.52,154.92]
[1747872082175,156.9937,173.63,173.52,154.92]
[1747872082778,156.9937,173.63,173.53,1.44060442]
[1747872082983,0.04193829,173.6,173.56,0.03887353]
[1747872083774,0.04193829,173.6,173.32,515.2]
[1747872083968,109.5,173.61,173.38,160.8604]
[1747872084167,109.5,173.61,173.39,154.92]
[1747872084376,2.0737,173.63,173.39,154.92]
[1747872084580,216.82715874,173.64,173.39,189.48]
[1747872084880,154.92,173.67,173.5,0.03734185]
[1747872085181,154.92,173.67,173.51,264.42]
[1747872085382,154.92,173.67,173.52,5.9668]
[1747872085883,0.04342389,173.61,173.58,0.03928481]
[1747872088081,0.04342389,173.61,173.59,1.4402343]
[1747872088286,0.04342389,173.61,173.56,1.23579922]
[1747872088478,5.7586,173.59,173.47,160.28954112]
[1747872088675,151.19022945,173.62,173.47,156.9878]
[1747872088985,5.76,173.54,173.42,160.6637]
[1747872089186,154.9,173.53,173.42,156.9878]
[1747872089376,0.03703643,173.49,173.46,0.03846183]
[1747872089576,0.0366077,173.49,173.46,0.03705631]
[1747872089974,154.9,173.48,173.34,154.9]
[1747872090178,156.8025,173.48,173.31,6.0904]
[1747872090984,0.04307889,173.41,173.38,0.04059705]
[1747872091288,0.04135063,173.41,173.38,0.04059705]
[1747872092985,497.88,173.52,173.38,0.04059705]
[1747872093194,154.94,173.51,173.35,154.94]
[1747872094093,0.04046766,173.45,173.41,0.04365595]
[1747872094593,0.04046766,173.45,173.44,5.7633]
[1747872095190,154.94,173.51,173.41,3.87425595]
[1747872095398,154.96,173.57,173.41,3.87425595]
[1747872095694,154.96,173.57,173.41,3.8306]
[1747872096194,0.0421562,173.51,173.47,0.04142591]
[1747872098398,0.0421562,173.51,173.47,5.80352591]
[1747872098595,0.0421562,173.51,173.47,0.04142591]
[1747872100397,0.0421562,173.51,173.31,11.5348]
[1747872100601,1.9007,173.51,173.31,11.5348]
[1747872100799,155.3,173.52,173.32,6.1241]
[1747872101003,155.3,173.52,173.33,498.1]
[1747872101302,155.3,173.54,173.33,498.1]
[1747872101504,6.62e-06,173.45,173.42,0.0439642]
[1747872101802,155.3,173.58,173.43,155.3]
[1747872102001,155.3,173.58,173.49,5.7614]
[1747872102203,155.3,173.58,173.44,6.0131]
[1747872102599,0.04090475,173.53,173.49,0.03764536]
[1747872102802,155.34090475,173.53,173.49,0.03764536]
[1747872103894,155.34090475,173.53,173.31,11.5352]
[1747872104100,5.7609,173.52,173.41,5.764]
[1747872104303,5.7609,173.52,173.32,6.0047]
[1747872104604,5.761,173.51,173.42,5.7637]
[1747872105005,0.04224702,173.48,173.45,0.03707404]
[1747872108806,5.7623,173.47,173.45,0.03707404]
[1747872109009,0.04224702,173.48,173.45,0.03707404]
[1747872109307,5.80424702,173.48,173.45,0.03707404]
[1747872109607,0.04224702,173.48,173.45,0.03707404]
[1747872110506,5.80434702,173.48,173.45,0.03707404]
[1747872110699,0.04224702,173.48,173.45,0.03707404]
[1747872111712,5.7626,173.46,173.45,0.03707404]
[1747872112010,0.04224702,173.48,173.45,0.03707404]
[1747872112209,5.7623,173.47,173.45,0.03707404]
[1747872112407,0.04224702,173.48,173.45,0.03707404]
[1747872112609,155.32,173.47,173.45,0.03707404]
[1747872113007,5.7626,173.46,173.45,0.03707404]
[1747872113309,155.32,173.47,173.45,0.03707404]
[1747872113505,0.04224702,173.48,173.45,0.03707404]
[1747872116713,5.80424702,173.48,173.45,0.03707404]
[1747872117014,0.04224702,173.48,173.45,0.03707404]
[1747872119014,5.7623,173.47,173.45,0.03707404]
[1747872119216,0.04224702,173.48,173.45,0.03707404]
[1747872120014,5.7625,173.47,173.45,0.03707404]
[1747872120415,0.04224702,173.48,173.45,0.03707404]
[1747872120614,5.7623,173.47,173.45,0.03707404]
[1747872121414,5.7626,173.46,173.45,0.03707404]
[1747872121617,0.04224702,173.48,173.45,0.03707404]
[1747872122618,14.4179585,173.54,173.46,155.34]
[1747872122819,14.4179585,173.54,173.53,5.7603]
[1747872123215,18.02244812,173.58,173.53,5.76]
[1747872123414,18.02244812,173.58,173.57,5.759]
[1747872123617,11.71144812,173.58,173.57,5.759]
[1747872124114,0.03946616,173.59,173.58,5.7587]
[1747872125815,59.083013,173.62,173.61,5.7577]
[1747872126011,49.259413,173.62,173.61,5.7577]
[1747872126320,85.48876625,173.64,173.63,5.757]
[1747872126721,155.3,173.72,173.58,155.3]
[1747872127020,0.04244719,173.65,173.62,0.04148062]
[1747872127217,155.3,173.64,173.51,155.3]
[1747872127417,155.3,173.64,173.57,5.7588]
[1747872127920,161.057,173.64,173.51,155.3]
[1747872128111,0.04426322,173.59,173.56,0.03670217]
[1747872129321,0.04426322,173.59,173.57,5.7587]
[1747872129522,0.04426322,173.59,173.56,0.03670217]
[1747872130422,0.04426322,173.59,173.57,1.44042224]
[1747872131025,0.04426322,173.59,173.58,5.7587]
[1747872131225,0.04426322,173.59,173.57,1.44042224]
[1747872131425,0.04426322,173.59,173.56,0.03670217]
[1747872132721,0.04426322,173.59,173.58,5.7587]
[1747872132922,154.06,173.68,173.56,154.09670217]
[1747872133123,154.06,173.68,173.56,154.06]
[1747872133324,159.8155,173.68,173.61,5.7576]
[1747872133521,6.011,173.75,173.56,154.06]
[1747872133720,154.06,173.74,173.56,154.06]
[1747872133921,0.03777105,173.67,173.63,0.04021719]
[1747872134216,0.03777105,173.67,173.63,0.04408747]
[1747872135528,5.79377105,173.67,173.63,0.04408747]
[1747872135733,0.03777105,173.67,173.56,154.06]
[1747872135935,154.04,173.69,173.54,5.7597]
[1747872136226,154.04,173.69,173.52,154.04]
[1747872136427,154.04,173.69,173.52,159.8004]
[1747872136623,154.04,173.69,173.64,4.84e-06]
[1747872136923,5.7579,173.61,173.53,5.7601]
[1747872137125,159.7979,173.61,173.53,5.7601]
[1747872137323,159.7979,173.61,173.48,154.04]
[1747872137625,159.7979,173.61,173.53,5.7601]
[1747872137931,0.03858123,173.59,173.55,0.0383061]
[1747872138135,0.03858123,173.59,173.55,5.7979061]
[1747872138433,0.03858123,173.59,173.55,0.0383061]
[1747872138637,0.03858123,173.59,173.56,5.759]
[1747872139033,0.03858123,173.59,173.55,0.0383061]
[1747872139932,0.03858123,173.59,173.55,164.0383061]
[1747872140433,0.03858123,173.59,173.58,5.7587]
[1747872140931,0.03858123,173.59,173.55,0.0383061]
[1747872142736,0.03858123,173.59,173.58,5.7587]
[1747872143721,8.123e-05,173.59,173.58,5.7587]
[1747872143928,8.123e-05,173.59,173.58,159.7787]
[1747872144228,8.123e-05,173.59,173.58,165.5387]
[1747872144731,8.123e-05,173.59,173.58,159.7787]
[1747872147329,8.123e-05,173.59,173.58,165.5387]
[1747872147523,8.123e-05,173.59,173.58,663.3787]
[1747872147727,7.6662,173.75,173.7,5.7545]
[1747872148034,2.024,173.76,173.66,154.02]
[1747872148233,2.024,173.76,173.67,154.02]
[1747872148431,2.024,173.76,173.73,5.7537]
[1747872148731,0.04337373,173.76,173.73,0.03927669]
[1747872148937,0.04337373,173.76,173.74,5.7531]
[1747872149324,0.04337373,173.76,173.73,0.03927669]
[1747872149524,0.04337373,173.76,173.74,5.7533]
[1747872149733,0.04337373,173.76,173.73,0.03927669]
[1747872150132,0.04337373,173.76,173.75,5.7531]
[1747872150335,0.04337373,173.76,173.73,0.03927669]
[1747872150832,0.04337373,173.76,173.75,5.7531]
[1747872151231,1.9256,173.87,173.73,109.49927669]
[1747872151433,7.6748,173.87,173.73,109.46]
[1747872152037,1.9256,173.87,173.73,109.46]
[1747872152239,0.04121625,173.82,173.78,0.04342254]
[1747872152439,0.04121625,173.82,173.78,153.96342254]
[1747872153040,0.04121625,173.82,173.8,5.7514]
[1747872153942,0.04121625,173.82,173.81,5.7511]
[1747872154845,0.04121625,173.82,173.78,153.96342254]
[1747872158142,0.04121625,173.82,173.78,0.04342254]
[1747872159834,0.04121625,173.82,173.78,5.79552254]
[1747872160037,0.04121625,173.82,173.78,0.04342254]
[1747872162048,0.04121625,173.82,173.81,5.7511]
[1747872163844,0.04121625,173.82,173.79,149.12]
[1747872164345,0.04121625,173.82,173.81,5.7511]
[1747872165047,2992.123,174.1,173.79,149.12]
[1747872165344,5.7465,173.95,173.79,149.12]
[1747872165534,149.1,173.96,173.8,3.0152]
[1747872165938,5.7465,173.95,173.9,5.7478]
[1747872166132,0.039478,173.94,173.91,0.04084372]
[1747872166334,0.03923203,173.94,173.93,5.7471]
[1747872166547,0.03923203,173.94,173.91,0.04350205]
[1747872166949,0.03923203,173.94,173.92,5.7472]
[1747872167247,0.03923203,173.94,173.91,0.04350205]
[1747872167947,0.03923203,173.94,173.93,5.7471]
[1747872168641,0.03923203,173.94,173.91,154.85100205]
[1747872168945,0.03923203,173.94,173.91,149.10350205]
[1747872169245,0.03923203,173.94,173.93,5.7471]
[1747872172340,3.203e-05,173.94,173.93,5.7471]
[1747872174846,453.0,174.58,173.93,502.7]
[1747872175145,149.0,174.29,173.9,1.9147]
[1747872175339,386.2751,174.28,173.9,1.9147]
[1747872175743,387.27499944,174.28,173.9,1.9147]
[1747872175943,0.0377962,174.11,174.07,0.03867478]
[1747872176153,0.04112753,174.11,174.07,0.04116489]
[1747872176342,0.04112753,174.11,173.91,496.96]
[1747872176639,3.9951,174.11,173.92,148.94]
[1747872176846,3.9951,174.11,173.9,111.1547]
[1747872177242,3.9951,174.11,173.9,109.24]
[1747872177546,0.03944161,174.02,173.99,0.03743233]
[1747872177750,0.03944161,174.02,173.99,0.0379287]
[1747872177751,148.98248717,174.02,173.99,0.0379287]
[1747872178951,0.04248717,174.02,173.99,0.0379287]
[1747872179141,8.717e-05,174.02,174.01,5.7445]
[1747872179842,8.717e-05,174.02,174.01,11.4845]
[1747872180050,148.94,174.21,174.01,114.98]
[1747872180250,148.94,174.21,174.0,148.94]
[1747872180251,148.94,174.2,173.96,5.2409]
[1747872180453,148.94,174.19,173.97,258.18]
[1747872180750,2.0102,174.18,173.97,258.18]
[1747872180951,0.04281323,174.09,174.06,0.03994247]
[1747872181150,0.0388974,174.09,174.06,0.04352313]
[1747872182251,0.0388974,174.09,173.96,5.2409]
[1747872182252,5.7788974,174.09,173.96,1.9792]
[1747872182452,2.0032,174.08,173.96,1.9792]
[1747872183045,0.0433585,174.04,174.01,5.7444]
[1747872183254,0.0433585,174.04,174.0,0.03805965]
[1747872183648,0.0433585,174.04,174.03,5.7438]
[1747872184052,5.85e-05,174.04,174.03,5.7438]
[1747872184453,5.85e-05,174.04,174.03,154.6438]
[1747872184652,5.85e-05,174.04,174.03,160.3838]
[1747872185555,148.88,174.48,174.04,17.31]
[1747872185746,148.88,174.39,174.04,19.3661]
[1747872185946,148.88,174.31,174.05,258.08]
[1747872186143,2.00007424,174.3,174.05,11.4863]
[1747872186350,2.00007424,174.3,174.06,258.08]
[1747872186553,2.00007424,174.3,174.05,11.4863]
[1747872186554,0.03914277,174.19,174.18,5.7389]
[1747872186753,0.04277585,174.2,174.17,0.03716042]
[1747872186954,0.04173039,174.2,174.17,0.04288599]
[1747872187757,0.04173039,174.2,174.19,5.7386]
[1747872187960,0.04173039,174.2,174.17,0.04288599]
[1747872188862,0.04173039,174.2,174.19,5.7386]
[1747872189655,3.039e-05,174.2,174.19,5.7386]
[1747872192250,3.039e-05,174.2,174.19,11.4786]
[1747872192956,3.039e-05,174.2,174.19,13.4426]
[1747872193157,3.039e-05,174.2,174.19,7.7026]
[1747872194158,3.039e-05,174.2,174.19,9.13724616]
[1747872194466,3.039e-05,174.2,174.19,14.87724616]
[1747872194954,3.039e-05,174.2,174.19,7.17324616]
[1747872195150,3.039e-05,174.2,174.19,156.43324616]
[1747872195354,3.039e-05,174.2,174.19,154.9986]
[1747872195860,3.039e-05,174.2,174.18,5.7389]
[1747872196060,3.039e-05,174.2,174.17,0.04288599]
[1747872197063,3.039e-05,174.2,174.19,5.7386]
[1747872197460,0.05947424,174.3,174.19,9.5501]
[1747872197655,0.05947424,174.3,174.19,5.2097]
[1747872198353,7.38e-06,174.26,174.23,0.04345656]
[1747872198650,7.38e-06,174.26,174.24,149.24]
[1747872198963,7.38e-06,174.26,174.25,5.7366]
[1747872199161,7.38e-06,174.26,174.24,149.24]
[1747872199162,8.162e-05,174.3,174.24,149.24]
[1747872199653,8.162e-05,174.3,174.29,5.7353]
[1747872199855,8.162e-05,174.3,174.29,154.9753]
[1747872200053,2.0601,174.47,174.29,154.98]
[1747872200251,2.0601,174.47,174.3,3.9534]
[1747872200453,2.0601,174.47,174.31,495.98]
[1747872201065,0.03942737,174.41,174.37,0.03652172]
[1747872202457,0.03942737,174.41,174.37,5.76892172]
[1747872202765,0.03942737,174.41,174.32,149.2]
[1747872202965,149.23942737,174.41,174.32,149.2]
[1747872203266,149.23942737,174.41,174.28,149.2]
[1747872203466,149.2,174.41,174.28,149.2]
[1747872203854,0.03851037,174.36,174.33,0.04307913]
[1747872205860,0.03851037,174.36,174.28,149.2]
[1747872206670,0.03851037,174.36,174.3,0.04270386]
[1747872208274,149.14,174.35,174.21,149.14]
[1747872208975,149.14,174.47,174.22,258.16]
[1747872209174,2.0434,174.36,174.19,149.14]
[1747872209378,0.04258966,174.29,174.26,0.04147631]
[1747872209673,0.04111022,174.29,174.26,0.04147631]
[1747872210075,0.04111022,174.29,174.16,1.8891]
[1747872210266,149.14,174.3,174.16,151.0291]
[1747872210575,149.14,174.3,174.07,495.78]
[1747872210765,149.14,174.3,174.12,149.14]
[1747872211171,0.03985989,174.23,174.19,0.04011138]
[1747872211371,0.03985989,174.23,174.07,495.78]
[1747872211572,149.14,174.25,174.1,149.14]
[1747872211573,4.1375,174.24,174.1,149.14]
[1747872212375,0.04124487,174.19,174.15,0.04072512]
[1747872212979,0.04124487,174.19,174.04,1.8885]
[1747872213170,149.18,174.2,174.05,149.18]
[1747872214077,0.04170241,174.14,174.11,0.03754515]
[1747872214480,0.04170241,174.14,174.05,149.18]
[1747872214875,4.20520241,174.14,174.01,149.18]
[1747872215074,4.1635,174.14,174.01,149.18]
[1747872215274,4.1635,174.14,174.12,5.7407]
[1747872215875,4.1635,174.14,174.11,0.04060977]
[1747872216083,4.1635,174.14,174.11,5.78180977]
[1747872216578,4.1635,174.14,174.12,5.7408]
[1747872216778,4.1635,174.14,174.11,0.04060977]
[1747872216971,0.04145774,174.15,174.11,0.04060977]
[1747872217173,0.04145774,174.15,174.14,5.7403]
[1747872217569,0.04145774,174.15,174.11,0.04060977]
[1747872217774,0.04145774,174.15,174.14,5.7403]
[1747872217977,0.04145774,174.15,174.11,0.04060977]
[1747872218984,0.04145774,174.15,174.04,149.22]
[1747872219279,2.0929,174.18,174.04,149.22]
[1747872220088,0.03655396,174.13,174.09,0.04058902]
[1747872220687,0.03655396,174.13,174.09,149.26058902]
[1747872220891,5.396e-05,174.13,174.09,149.26058902]
[1747872221092,5.396e-05,174.13,174.12,5.7409]
[1747872221390,5.396e-05,174.13,174.12,11.4809]
[1747872222992,5.396e-05,174.13,174.12,5.7409]
[1747872223187,5.396e-05,174.13,174.12,11.4809]
[1747872225194,5.396e-05,174.13,174.12,5.7409]
[1747872225494,5.396e-05,174.13,174.12,11.4809]
[1747872225698,5.396e-05,174.13,174.12,5.7409]
[1747872226493,4.1576,174.26,174.11,109.1]
[1747872226991,4.1576,174.26,174.25,5.7366]
[1747872227189,4.1576,174.26,174.16,150.28]
[1747872227390,0.03762456,174.23,174.19,0.04334469]
[1747872227590,0.03762456,174.23,174.22,5.7376]
[1747872229601,0.03762456,174.23,174.22,7.17255319]
[1747872230099,0.03762456,174.23,174.22,5.7376]
[1747872230998,0.03762456,174.23,174.2,5.7382]
[1747872231194,0.03762456,174.23,174.19,0.04334469]
[1747872231499,0.03762456,174.23,174.18,5.7389]
[1747872231797,150.26,174.22,174.11,150.26]
[1747872232000,1.9762,174.21,174.11,150.26]
[1747872232201,7.7144,174.21,174.16,5.7395]
[1747872232397,0.04394995,174.2,174.17,0.03795512]
[1747872232597,0.04394995,174.2,174.11,150.26]
[1747872232795,5.78254995,174.2,174.11,150.26]
[1747872233002,0.04394995,174.2,174.07,150.26]
[1747872233197,1.9762,174.21,174.07,150.26]
[1747872233399,1.9762,174.21,174.13,5.7406]
[1747872233603,1.9762,174.21,174.15,0.03810145]
[1747872233604,0.04126465,174.19,174.15,0.03810145]
[1747872233893,0.04126465,174.19,174.06,150.28]
[1747872234094,1.9762,174.21,174.12,1.43567073]
[1747872234301,1.9762,174.21,174.11,1.22734103]
[1747872234596,1.9762,174.21,173.99,109.1]
[1747872234796,0.03849537,174.13,173.99,109.1]
[1747872234996,0.04020572,174.09,174.05,5.743]
[1747872235196,0.04035511,174.09,173.99,150.28]
[1747872235393,0.03783978,174.06,173.99,150.28]
[1747872235593,3.978e-05,174.06,174.01,0.03651771]
[1747872235794,3.978e-05,174.06,174.05,5.7432]
[1747872245609,3.978e-05,174.06,174.05,156.0832]
[1747872245904,150.34,174.25,174.05,265.22]
[1747872246097,150.34,174.26,174.05,423.48]
[1747872246297,150.34,174.26,174.05,276.79]
[1747872246501,150.34,174.26,174.25,5.7366]
[1747872246695,1.9142,174.27,174.25,5.7366]
[1747872246902,1.9142,174.27,174.24,0.04154496]
[1747872247099,1.95177855,174.27,174.24,0.03904602]
[1747872247709,1.95177855,174.27,174.25,5.7364]
[1747872248108,1.95177855,174.27,174.24,0.03904602]
[1747872248402,0.03757855,174.27,174.24,0.03904602]
[1747872248801,0.03757855,174.27,174.25,5.7364]
[1747872249203,0.03757855,174.27,174.24,0.03904602]
[1747872249600,7.855e-05,174.27,174.26,5.7363]
[1747872250199,7.855e-05,174.27,174.24,0.03904602]